bitfinex-derivatives/quotes_BTCF0:USTF0_20251230
["timestamp","ask_amount","ask_price","bid_price","bid_amount"]
[1767068004669,0.16608465,87377.0,87355.0,0.0114621]
[1767068004867,0.02784465,87376.0,87355.0,0.0114621]
[1767068005073,0.02784465,87375.0,87355.0,0.0114621]
[1767068005371,0.00011391,87374.0,87356.0,0.00017175]
[1767068007879,0.0114583,87385.0,87357.0,0.0114618]
[1767068008074,0.18258479,87384.0,87357.0,0.0114618]
[1767068008274,0.12522479,87383.0,87357.0,0.0114618]
[1767068008473,0.02782479,87382.0,87357.0,0.0114618]
[1767068008679,0.02782479,87381.0,87357.0,0.0114618]
[1767068008879,0.02782479,87380.0,87357.0,0.0114618]
[1767068009078,0.1088585,87383.0,87360.0,0.0114614]
[1767068009079,0.0974,87383.0,87360.0,0.0114614]
[1767068009280,0.011458,87387.0,87360.0,0.0114614]
[1767068009474,0.18252592,87386.0,87360.0,0.0114614]
[1767068009674,0.0114584,87384.0,87360.0,0.0114614]
[1767068011477,0.0114588,87381.0,87358.0,0.0974]
[1767068011982,0.15476,87386.0,87358.0,0.0974]
[1767068011983,0.0114583,87385.0,87358.0,0.0974]
[1767068012276,0.0114583,87385.0,87359.0,0.0114616]
[1767068015177,0.0114585,87383.0,87359.0,0.0114616]
[1767068017079,0.15476,87386.0,87359.0,0.0114616]
[1767068017281,0.0114582,87385.0,87359.0,0.0114616]
[1767068019583,0.25055839,87398.0,87358.0,0.0974]
[1767068019584,0.00703839,87398.0,87362.0,0.0114612]
[1767068019891,0.17921103,87397.0,87362.0,0.0114612]
[1767068020090,0.02777103,87396.0,87362.0,0.0114612]
[1767068020389,0.02777103,87395.0,87362.0,0.0114612]
[1767068020584,0.02777103,87394.0,87362.0,0.0114612]
[1767068020790,0.0114576,87390.0,87365.0,0.0114608]
[1767068020981,0.05736,87389.0,87366.0,0.05736]
[1767068023090,0.0114579,87388.0,87366.0,0.05736]
[1767068027692,0.0114582,87385.0,87366.0,0.05736]
[1767068028600,0.0114582,87385.0,87357.0,0.06284652]
[1767068028601,0.05736,87389.0,87367.0,0.15472]
[1767068028802,0.02779822,87388.0,87367.0,0.15472]
[1767068029096,0.0114585,87383.0,87367.0,0.15472]
[1767068030502,0.0114585,87383.0,87363.0,0.1661811]
[1767068033206,0.0114585,87383.0,87363.0,0.15472]
[1767068034307,0.02783931,87382.0,87363.0,0.15472]
[1767068034506,0.0114585,87383.0,87363.0,0.15472]
[1767068034709,0.0114588,87381.0,87363.0,0.15472]
[1767068037410,0.0114592,87378.0,87363.0,0.15472]
[1767068042516,0.0114587,87382.0,87363.0,0.15472]
[1767068045223,0.02764725,87381.0,87363.0,0.15472]
[1767068045413,0.0114587,87382.0,87363.0,0.15472]
[1767068045814,0.02764725,87381.0,87363.0,0.15472]
[1767068046021,0.0114587,87382.0,87363.0,0.15472]
[1767068046226,0.0276484,87381.0,87363.0,0.15472]
[1767068046520,0.0114587,87382.0,87363.0,0.15472]
[1767068046719,0.02764862,87381.0,87363.0,0.15472]
[1767068046911,0.0114587,87382.0,87363.0,0.15472]
[1767068047108,0.02764862,87381.0,87363.0,0.15472]
[1767068047322,0.0114587,87382.0,87363.0,0.15472]
[1767068047521,0.02765008,87381.0,87363.0,0.15472]
[1767068047821,0.0114587,87382.0,87363.0,0.15472]
[1767068048021,0.02765008,87381.0,87363.0,0.15472]
[1767068048222,0.0114587,87382.0,87363.0,0.15472]
[1767068048425,0.02765176,87381.0,87363.0,0.15472]
[1767068048722,0.0114587,87382.0,87363.0,0.15472]
[1767068048920,0.02765177,87381.0,87363.0,0.15472]
[1767068049122,0.0114587,87382.0,87363.0,0.15472]
[1767068049325,0.02765177,87381.0,87363.0,0.15472]
[1767068049625,0.02765177,87380.0,87363.0,0.15472]
[1767068049922,0.02765177,87379.0,87363.0,0.15472]
[1767068050122,0.0114587,87382.0,87363.0,0.15472]
[1767068050324,0.02765228,87381.0,87363.0,0.15472]
[1767068050622,0.02765228,87380.0,87363.0,0.15472]
[1767068050820,0.0114587,87382.0,87363.0,0.15472]
[1767068050821,0.02765228,87379.0,87363.0,0.15472]
[1767068051027,0.0114587,87382.0,87363.0,0.15472]
[1767068051228,0.02765224,87381.0,87363.0,0.15472]
[1767068051523,0.02765224,87380.0,87363.0,0.15472]
[1767068051714,0.02765224,87379.0,87363.0,0.15472]
[1767068051911,0.0114587,87382.0,87363.0,0.15472]
[1767068052111,0.02765271,87381.0,87363.0,0.15472]
[1767068052315,0.02765271,87380.0,87363.0,0.15472]
[1767068052523,0.02765271,87379.0,87363.0,0.15472]
[1767068052723,0.0114587,87382.0,87363.0,0.15472]
[1767068052924,0.02765371,87381.0,87363.0,0.15472]
[1767068053125,0.02765371,87380.0,87363.0,0.15472]
[1767068053425,0.02765371,87379.0,87363.0,0.15472]
[1767068053725,0.02765371,87378.0,87363.0,0.15472]
[1767068053926,0.0114587,87382.0,87363.0,0.15472]
[1767068054224,0.02765424,87381.0,87363.0,0.15472]
[1767068054422,0.18353899,87380.0,87363.0,0.15472]
[1767068054623,0.02765424,87379.0,87363.0,0.15472]
[1767068057428,0.02765424,87378.0,87363.0,0.15472]
[1767068057631,0.0114587,87382.0,87363.0,0.15472]
[1767068057928,0.0276584,87381.0,87363.0,0.15472]
[1767068058129,0.0276584,87380.0,87363.0,0.15472]
[1767068058330,0.0276584,87379.0,87364.0,0.0114609]
[1767068058524,0.0026584,87378.0,87364.0,0.05736]
[1767068058830,0.0114587,87382.0,87364.0,0.05736]
[1767068063327,0.0114582,87386.0,87364.0,0.05736]
[1767068066637,0.0114585,87383.0,87364.0,0.05736]
[1767068067934,0.1088181,87387.0,87364.0,0.05736]
[1767068068129,0.0114584,87384.0,87364.0,0.05736]
[1767068069341,0.0114582,87385.0,87364.0,0.05736]
[1767068070143,0.09736,87387.0,87364.0,0.05736]
[1767068070336,0.0114587,87382.0,87364.0,0.05736]
[1767068070638,0.02748249,87381.0,87364.0,0.05736]
[1767068070839,0.02748249,87380.0,87364.0,0.05736]
[1767068071040,0.0114587,87382.0,87364.0,0.05736]
[1767068071242,0.02748249,87381.0,87364.0,0.05736]
[1767068071441,0.02748249,87380.0,87364.0,0.05736]
[1767068071643,0.0114587,87382.0,87364.0,0.05736]
[1767068071843,0.02748251,87381.0,87364.0,0.05736]
[1767068072044,0.02748251,87380.0,87364.0,0.05736]
[1767068072343,0.0114587,87382.0,87364.0,0.05736]
[1767068072543,0.02748254,87381.0,87364.0,0.05736]
[1767068072743,0.02748254,87380.0,87364.0,0.05736]
[1767068072938,0.0114587,87382.0,87364.0,0.05736]
[1767068073140,0.02748254,87381.0,87364.0,0.05736]
[1767068073341,0.02748254,87380.0,87364.0,0.05736]
[1767068073638,0.0114587,87382.0,87364.0,0.05736]
[1767068073840,0.02748256,87381.0,87364.0,0.05736]
[1767068074040,0.02748256,87380.0,87364.0,0.05736]
[1767068074247,0.0114587,87382.0,87364.0,0.05736]
[1767068074545,0.02748258,87381.0,87364.0,0.05736]
[1767068074735,0.02748258,87380.0,87364.0,0.05736]
[1767068074939,0.0114587,87382.0,87364.0,0.05736]
[1767068075250,0.02748258,87381.0,87364.0,0.05736]
[1767068075449,0.02748258,87380.0,87364.0,0.05736]
[1767068075650,0.0114587,87382.0,87364.0,0.05736]
[1767068075849,0.02748261,87381.0,87364.0,0.05736]
[1767068076044,0.02748261,87380.0,87364.0,0.05736]
[1767068076250,0.0114587,87382.0,87364.0,0.05736]
[1767068076451,0.02748263,87381.0,87364.0,0.05736]
[1767068076646,0.02748263,87380.0,87364.0,0.05736]
[1767068076846,0.0114587,87382.0,87364.0,0.05736]
[1767068077047,0.02748263,87381.0,87364.0,0.05736]
[1767068077248,0.02748263,87380.0,87364.0,0.05736]
[1767068077449,0.0114587,87382.0,87364.0,0.05736]
[1767068077648,0.02748263,87381.0,87364.0,0.05736]
[1767068077851,0.02748263,87380.0,87364.0,0.05736]
[1767068078058,0.0114587,87382.0,87364.0,0.05736]
[1767068078259,0.02748262,87381.0,87364.0,0.05736]
[1767068078457,0.02748262,87380.0,87364.0,0.05736]
[1767068078658,0.0114587,87382.0,87364.0,0.05736]
[1767068078860,0.02748264,87381.0,87364.0,0.05736]
[1767068079161,0.02748264,87380.0,87364.0,0.05736]
[1767068079362,0.0114587,87382.0,87364.0,0.05736]
[1767068079563,0.0114589,87380.0,87364.0,0.05736]
[1767068081665,0.0114594,87377.0,87364.0,0.05736]
[1767068083571,0.09736,87387.0,87356.0,0.00017175]
[1767068083572,0.15588475,87374.0,87356.0,0.00017175]
[1767068083867,0.0114605,87368.0,87357.0,0.15472]
[1767068084060,0.0114605,87368.0,87356.0,0.00017175]
[1767068084261,0.0114605,87368.0,87357.0,0.15472]
[1767068090274,0.15588475,87370.0,87357.0,0.15472]
[1767068093267,0.0114614,87361.0,87342.0,0.08243411]
[1767068093474,0.15588475,87360.0,87343.0,0.15472]
[1767068094274,0.1560565,87360.0,87343.0,0.15489175]
[1767068097277,0.00017175,87360.0,87343.0,0.15489175]
[1767068097478,0.1560565,87360.0,87343.0,0.15489175]
[1767068098970,0.00017175,87360.0,87343.0,0.15489175]
[1767068099182,0.1560565,87360.0,87343.0,0.15489175]
[1767068099782,0.1560565,87360.0,87344.0,0.0114635]
[1767068100686,0.1560565,87360.0,87343.0,0.16635545]
[1767068101480,0.00017175,87360.0,87343.0,0.16635545]
[1767068101677,0.00017175,87360.0,87343.0,0.15489175]
[1767068101878,0.1560565,87360.0,87343.0,0.15489175]
[1767068102078,0.1560565,87360.0,87343.0,0.16635545]
[1767068102678,0.00017175,87360.0,87343.0,0.16635545]
[1767068102876,0.1560565,87360.0,87343.0,0.16635545]
[1767068103984,0.00017175,87360.0,87343.0,0.16635545]
[1767068104185,0.00017175,87360.0,87343.0,0.15489175]
[1767068104785,0.00017175,87360.0,87344.0,0.0114635]
[1767068105488,0.00017175,87360.0,87343.0,0.15489175]
[1767068105489,0.1560565,87360.0,87343.0,0.15489175]
[1767068105783,0.011463,87349.0,87331.0,0.0974]
[1767068105983,0.05736,87349.0,87334.0,0.05736]
[1767068141316,0.0114621,87356.0,87334.0,0.05736]
[1767068141506,0.02762626,87355.0,87334.0,0.05736]
[1767068141706,0.02762626,87354.0,87334.0,0.05736]
[1767068141907,0.02762626,87353.0,87334.0,0.05736]
[1767068142112,0.02762626,87352.0,87334.0,0.05736]
[1767068142412,0.0974,87359.0,87337.0,0.0114644]
[1767068142612,0.08499677,87358.0,87340.0,0.0114641]
[1767068142812,0.02763677,87357.0,87336.0,0.0114646]
[1767068143013,0.02763677,87356.0,87336.0,0.0114646]
[1767068143216,0.02763677,87355.0,87336.0,0.0114646]
[1767068143415,0.05736,87358.0,87336.0,0.0114646]
[1767068143619,0.05736,87358.0,87334.0,0.05736]
[1767068143620,0.02763112,87357.0,87334.0,0.05736]
[1767068143921,0.02763112,87356.0,87334.0,0.05736]
[1767068144120,0.02763112,87355.0,87334.0,0.05736]
[1767068144322,0.05736,87358.0,87335.0,0.0114647]
[1767068144521,0.0276293,87357.0,87335.0,0.0114647]
[1767068144717,0.0276293,87356.0,87335.0,0.0114647]
[1767068144922,0.05736,87358.0,87335.0,0.0114647]
[1767068145122,0.02762929,87357.0,87335.0,0.0114647]
[1767068145322,0.02762929,87356.0,87335.0,0.0114647]
[1767068145525,0.05736,87358.0,87335.0,0.0114647]
[1767068145726,0.02762787,87357.0,87338.0,0.0114643]
[1767068145928,0.02762787,87356.0,87338.0,0.0114643]
[1767068146126,0.05736,87358.0,87338.0,0.0114643]
[1767068146328,0.02762787,87357.0,87338.0,0.0114643]
[1767068146529,0.02762787,87356.0,87338.0,0.0114643]
[1767068146728,0.05736,87358.0,87338.0,0.0114643]
[1767068146931,0.0276267,87357.0,87338.0,0.0114643]
[1767068147228,0.0276267,87356.0,87338.0,0.0114643]
[1767068147429,0.05736,87358.0,87338.0,0.0114643]
[1767068147731,0.02762577,87357.0,87337.0,0.0114644]
[1767068147924,0.02762577,87356.0,87337.0,0.0114644]
[1767068148127,0.05736,87358.0,87337.0,0.0114644]
[1767068148327,0.02762577,87357.0,87337.0,0.0114644]
[1767068148629,0.02762577,87356.0,87337.0,0.0114644]
[1767068148829,0.05736,87358.0,87337.0,0.0114644]
[1767068149018,0.027625,87357.0,87337.0,0.0114644]
[1767068149218,0.027625,87356.0,87337.0,0.0114644]
[1767068149429,0.05736,87358.0,87337.0,0.0114644]
[1767068149634,0.02762433,87357.0,87337.0,0.0114644]
[1767068149829,0.02762433,87356.0,87337.0,0.0114644]
[1767068150128,0.05736,87358.0,87337.0,0.0114644]
[1767068150429,0.02762433,87357.0,87337.0,0.0114644]
[1767068150630,0.02762433,87356.0,87337.0,0.0114644]
[1767068150932,0.05736,87358.0,87337.0,0.0114644]
[1767068151121,0.02762378,87357.0,87337.0,0.0114644]
[1767068151324,0.02762378,87356.0,87337.0,0.0114644]
[1767068151524,0.05736,87358.0,87337.0,0.0114644]
[1767068151822,0.0276233,87357.0,87337.0,0.0114644]
[1767068152023,0.0276233,87356.0,87337.0,0.0114644]
[1767068152229,0.05736,87358.0,87337.0,0.0114644]
[1767068152429,0.02762288,87357.0,87337.0,0.0114644]
[1767068152730,0.02762288,87356.0,87337.0,0.0114644]
[1767068152929,0.05736,87358.0,87337.0,0.0114644]
[1767068153132,0.02762288,87357.0,87337.0,0.0114644]
[1767068153332,0.02762288,87356.0,87337.0,0.0114644]
[1767068153527,0.05736,87358.0,87337.0,0.0114644]
[1767068153733,0.02762263,87357.0,87340.0,0.0114641]
[1767068153928,0.02762263,87356.0,87341.0,0.05736]
[1767068154129,0.05736,87358.0,87341.0,0.05736]
[1767068154329,0.02762263,87357.0,87341.0,0.05736]
[1767068154529,0.02762263,87356.0,87341.0,0.05736]
[1767068154730,0.05736,87358.0,87341.0,0.05736]
[1767068154929,0.02762245,87357.0,87341.0,0.05736]
[1767068155130,0.00017175,87360.0,87342.0,0.0114638]
[1767068155330,0.02762238,87359.0,87342.0,0.0114638]
[1767068155527,0.00017175,87360.0,87342.0,0.0114638]
[1767068155728,0.02762201,87359.0,87342.0,0.0114638]
[1767068155933,0.00017175,87360.0,87342.0,0.0114638]
[1767068156135,0.02762201,87359.0,87342.0,0.0114638]
[1767068156324,0.00017175,87360.0,87342.0,0.0114638]
[1767068156526,0.0276215,87359.0,87342.0,0.0114638]
[1767068156730,0.00017175,87360.0,87342.0,0.0114638]
[1767068156935,0.02762156,87359.0,87342.0,0.0114638]
[1767068157127,0.00017175,87360.0,87342.0,0.0114638]
[1767068157327,0.02762145,87359.0,87342.0,0.0114638]
[1767068157527,0.00017175,87360.0,87342.0,0.0114638]
[1767068157731,0.027621,87359.0,87342.0,0.0114638]
[1767068157932,0.00017175,87360.0,87342.0,0.0114638]
[1767068158239,0.02762104,87359.0,87342.0,0.0114638]
[1767068158536,0.00017175,87360.0,87341.0,0.15476]
[1767068158738,0.02770556,87359.0,87341.0,0.15476]
[1767068158932,0.00017175,87360.0,87341.0,0.15476]
[1767068159134,0.02770557,87359.0,87341.0,0.15476]
[1767068159337,0.00017175,87360.0,87344.0,0.0114636]
[1767068159533,0.02770539,87359.0,87344.0,0.0114636]
[1767068159833,0.00017175,87360.0,87344.0,0.0114636]
[1767068160137,0.02770537,87359.0,87344.0,0.0114636]
[1767068160327,0.00017175,87360.0,87344.0,0.0114636]
[1767068160528,0.02770538,87359.0,87344.0,0.0114636]
[1767068160724,0.00017175,87360.0,87344.0,0.0114636]
[1767068160930,0.02770538,87359.0,87344.0,0.0114636]
[1767068161131,0.00017175,87360.0,87344.0,0.0114636]
[1767068161444,0.02770525,87359.0,87344.0,0.0114636]
[1767068161735,0.00017175,87360.0,87344.0,0.0114636]
[1767068162041,0.02770528,87359.0,87344.0,0.0114636]
[1767068162244,0.00017175,87360.0,87344.0,0.0114636]
[1767068162539,0.02770529,87359.0,87344.0,0.0114636]
[1767068162731,0.00017175,87360.0,87341.0,0.15476]
[1767068162928,0.00017175,87360.0,87342.0,0.0114638]
[1767068162929,0.02770529,87359.0,87342.0,0.0114638]
[1767068163126,0.00017175,87360.0,87342.0,0.0114638]
[1767068163332,0.02770526,87359.0,87342.0,0.0114638]
[1767068163532,0.00017175,87360.0,87342.0,0.0114638]
[1767068163733,0.02770542,87359.0,87342.0,0.0114638]
[1767068163934,0.00017175,87360.0,87342.0,0.0114638]
[1767068164136,0.0114598,87374.0,87343.0,0.11448065]
[1767068164335,0.05736,87370.0,87343.0,0.11448065]
[1767068164536,0.05736,87370.0,87341.0,0.15476]
[1767068164738,0.05736,87370.0,87342.0,0.11448065]
[1767068165237,0.00017175,87364.0,87348.0,0.011463]
[1767068165438,0.00017175,87364.0,87350.0,0.0114628]
[1767068165634,0.05736,87370.0,87350.0,0.0114628]
[1767068166137,0.05736,87370.0,87353.0,0.0114624]
[1767068167530,0.0114592,87378.0,87353.0,0.0114624]
[1767068167737,0.05736,87376.0,87353.0,0.0114624]
[1767068169846,0.05736,87376.0,87356.0,0.011462]
[1767068170242,0.05736,87376.0,87358.0,0.1559099]
[1767068171541,0.10267519,87403.0,87359.0,0.0114616]
[1767068171749,0.1559099,87380.0,87359.0,0.0114616]
[1767068172050,0.15476,87379.0,87361.0,0.00017175]
[1767068173350,0.0114592,87378.0,87361.0,0.00017175]
[1767068175349,0.15476,87379.0,87361.0,0.00017175]
[1767068175750,0.166219,87379.0,87361.0,0.00017175]
[1767068176253,0.02753652,87378.0,87361.0,0.00017175]
[1767068176450,0.02753652,87377.0,87361.0,0.00017175]
[1767068176651,0.02753652,87376.0,87361.0,0.00017175]
[1767068176851,0.166219,87379.0,87361.0,0.00017175]
[1767068177051,0.02753541,87378.0,87361.0,0.00017175]
[1767068177252,0.02753541,87377.0,87361.0,0.00017175]
[1767068177551,0.02753541,87376.0,87361.0,0.00017175]
[1767068177753,0.166219,87379.0,87361.0,0.00017175]
[1767068177950,0.02753468,87378.0,87361.0,0.00017175]
[1767068178151,0.02753468,87377.0,87361.0,0.00017175]
[1767068178352,0.02753468,87376.0,87361.0,0.00017175]
[1767068178650,0.166219,87379.0,87361.0,0.00017175]
[1767068178951,0.02753432,87378.0,87361.0,0.00017175]
[1767068179141,0.02753432,87377.0,87361.0,0.00017175]
[1767068179339,0.02753432,87376.0,87361.0,0.00017175]
[1767068179653,0.166219,87379.0,87361.0,0.00017175]
[1767068179854,0.0275343,87378.0,87361.0,0.00017175]
[1767068180045,0.0275343,87377.0,87361.0,0.00017175]
[1767068180246,0.0275343,87376.0,87361.0,0.00017175]
[1767068180448,0.166219,87379.0,87361.0,0.00017175]
[1767068180649,0.02753462,87378.0,87361.0,0.00017175]
[1767068180948,0.02753462,87377.0,87361.0,0.00017175]
[1767068181146,0.05736,87376.0,87361.0,0.00017175]
[1767068181349,0.0688195,87376.0,87361.0,0.00017175]
[1767068181852,0.02753469,87375.0,87361.0,0.00017175]
[1767068182049,0.0688195,87376.0,87361.0,0.00017175]
[1767068182244,0.02753469,87375.0,87361.0,0.00017175]
[1767068182446,0.0688195,87376.0,87361.0,0.00017175]
[1767068182645,0.02753541,87375.0,87361.0,0.00017175]
[1767068182843,0.0688195,87376.0,87361.0,0.00017175]
[1767068183046,0.02753541,87375.0,87361.0,0.00017175]
[1767068183253,0.0688195,87376.0,87361.0,0.00017175]
[1767068183554,0.02753656,87375.0,87361.0,0.00017175]
[1767068183853,0.05736,87376.0,87361.0,0.00017175]
[1767068184042,0.02753655,87375.0,87361.0,0.00017175]
[1767068184241,0.05736,87376.0,87361.0,0.00017175]
[1767068184447,0.02753812,87375.0,87361.0,0.00017175]
[1767068184655,0.05736,87376.0,87361.0,0.00017175]
[1767068184954,0.02753812,87375.0,87361.0,0.00017175]
[1767068185154,0.05736,87376.0,87361.0,0.00017175]
[1767068185345,0.02753992,87375.0,87361.0,0.00017175]
[1767068185548,0.05736,87376.0,87361.0,0.00017175]
[1767068185856,0.02753992,87375.0,87361.0,0.00017175]
[1767068186154,0.05736,87376.0,87361.0,0.00017175]
[1767068186355,0.0275421,87375.0,87361.0,0.00017175]
[1767068186551,0.05736,87376.0,87361.0,0.00017175]
[1767068187353,0.05736,87376.0,87366.0,0.1559099]
[1767068188056,0.05736,87376.0,87361.0,0.00017175]
[1767068192161,0.02706553,87375.0,87361.0,0.00017175]
[1767068192362,0.05736,87376.0,87361.0,0.00017175]
[1767068192663,0.02706553,87375.0,87361.0,0.00017175]
[1767068192962,0.05736,87376.0,87361.0,0.00017175]
[1767068193164,0.02706553,87375.0,87361.0,0.00017175]
[1767068193361,0.05736,87376.0,87361.0,0.00017175]
[1767068193559,0.02707294,87375.0,87361.0,0.00017175]
[1767068193760,0.05736,87376.0,87361.0,0.00017175]
[1767068194058,0.02707294,87375.0,87361.0,0.00017175]
[1767068194259,0.02707294,87374.0,87361.0,0.00017175]
[1767068194462,0.05736,87376.0,87361.0,0.00017175]
[1767068194650,0.02708139,87375.0,87361.0,0.00017175]
[1767068194853,0.02708139,87374.0,87361.0,0.00017175]
[1767068195057,0.05736,87376.0,87361.0,0.00017175]
[1767068195266,0.0270811,87375.0,87361.0,0.00017175]
[1767068195469,0.0270811,87374.0,87361.0,0.00017175]
[1767068195760,0.05736,87376.0,87361.0,0.00017175]
[1767068195961,0.02708241,87375.0,87361.0,0.00017175]
[1767068196161,0.02708241,87374.0,87361.0,0.00017175]
[1767068196361,0.05736,87376.0,87361.0,0.00017175]
[1767068196562,0.02708379,87375.0,87361.0,0.00017175]
[1767068196761,0.02708379,87374.0,87361.0,0.00017175]
[1767068196953,0.05736,87376.0,87361.0,0.00017175]
[1767068197154,0.02708379,87375.0,87361.0,0.00017175]
[1767068197357,0.02708379,87374.0,87361.0,0.00017175]
[1767068197558,0.05736,87376.0,87361.0,0.00017175]
[1767068197758,0.02708453,87375.0,87361.0,0.00017175]
[1767068197963,0.02708453,87374.0,87361.0,0.00017175]
[1767068198167,0.05736,87376.0,87361.0,0.00017175]
[1767068198466,0.02708468,87375.0,87361.0,0.00017175]
[1767068198663,0.02708468,87374.0,87361.0,0.00017175]
[1767068198864,0.05736,87376.0,87361.0,0.00017175]
[1767068199065,0.02708468,87375.0,87361.0,0.00017175]
[1767068199261,0.05736,87376.0,87361.0,0.00017175]
[1767068199462,0.02708499,87375.0,87361.0,0.00017175]
[1767068199664,0.05736,87376.0,87361.0,0.00017175]
[1767068200062,0.02708465,87375.0,87361.0,0.00017175]
[1767068200266,0.05736,87376.0,87361.0,0.00017175]
[1767068200469,0.02708462,87375.0,87361.0,0.00017175]
[1767068200665,0.05736,87376.0,87361.0,0.00017175]
[1767068203854,0.05736,87376.0,87362.0,0.0114612]
[1767068205871,0.05736,87376.0,87366.0,0.1559099]
[1767068206060,0.05736,87376.0,87365.0,0.05736]
[1767068206255,0.05736,87376.0,87366.0,0.1309099]
[1767068206468,0.05736,87376.0,87365.0,0.05736]
[1767068219579,0.05736,87376.0,87366.0,0.1559099]
[1767068219774,0.05736,87376.0,87365.0,0.05736]
[1767068227386,0.05736,87376.0,87363.0,0.05736]
[1767068234393,0.02708432,87375.0,87363.0,0.05736]
[1767068234593,0.05736,87376.0,87363.0,0.05736]
[1767068234894,0.02708339,87375.0,87363.0,0.05736]
[1767068235095,0.05736,87376.0,87363.0,0.05736]
[1767068235297,0.02708333,87375.0,87363.0,0.05736]
[1767068235493,0.05736,87376.0,87363.0,0.05736]
[1767068235794,0.02708242,87375.0,87363.0,0.05736]
[1767068235996,0.05736,87376.0,87363.0,0.05736]
[1767068236190,0.02708242,87375.0,87363.0,0.05736]
[1767068236390,0.05736,87376.0,87363.0,0.05736]
[1767068236591,0.02708189,87375.0,87363.0,0.05736]
[1767068236890,0.05736,87376.0,87363.0,0.05736]
[1767068237190,0.02708189,87375.0,87363.0,0.05736]
[1767068237390,0.05736,87376.0,87363.0,0.05736]
[1767068237592,0.02708143,87375.0,87363.0,0.05736]
[1767068237792,0.05736,87376.0,87363.0,0.05736]
[1767068237997,0.02708143,87375.0,87363.0,0.05736]
[1767068238296,0.05736,87376.0,87363.0,0.05736]
[1767068238486,0.02708102,87375.0,87363.0,0.05736]
[1767068238684,0.05736,87376.0,87363.0,0.05736]
[1767068238988,0.02708102,87375.0,87363.0,0.05736]
[1767068239190,0.05736,87376.0,87363.0,0.05736]
[1767068239385,0.02708071,87375.0,87363.0,0.05736]
[1767068239589,0.02708071,87374.0,87363.0,0.05736]
[1767068239798,0.02708071,87373.0,87363.0,0.05736]
[1767068239997,0.05736,87376.0,87363.0,0.05736]
[1767068240193,0.02708071,87375.0,87363.0,0.05736]
[1767068240396,0.02708071,87374.0,87363.0,0.05736]
[1767068240697,0.02708071,87373.0,87363.0,0.05736]
[1767068240899,0.05736,87376.0,87363.0,0.05736]
[1767068241099,0.02708043,87375.0,87363.0,0.05736]
[1767068241299,0.02708043,87374.0,87363.0,0.05736]
[1767068241499,0.02708043,87373.0,87363.0,0.05736]
[1767068241801,0.05736,87376.0,87363.0,0.05736]
[1767068242100,0.02708021,87375.0,87363.0,0.05736]
[1767068242299,0.02708021,87374.0,87363.0,0.05736]
[1767068242500,0.02708021,87373.0,87363.0,0.05736]
[1767068242795,0.05736,87376.0,87363.0,0.05736]
[1767068243003,0.02708004,87375.0,87363.0,0.05736]
[1767068243199,0.02708004,87374.0,87363.0,0.03236]
[1767068243400,0.05736,87376.0,87363.0,0.03236]
[1767068243601,0.02707988,87375.0,87367.0,0.0114605]
[1767068243795,0.0114559,87403.0,87367.0,0.0114605]
[1767068243796,0.09366868,87399.0,87367.0,0.0114605]
[1767068244006,0.1662166,87398.0,87363.0,0.03236]
[1767068244402,0.011457,87395.0,87369.0,0.0114602]
[1767068246891,0.011457,87395.0,87370.0,0.09736]
[1767068247092,0.011457,87395.0,87371.0,0.01146]
[1767068247093,0.05736,87395.0,87371.0,0.01146]
[1767068247296,0.05736,87395.0,87372.0,0.05736]
[1767068254100,0.05736,87395.0,87373.0,0.0114597]
[1767068254702,0.05736,87395.0,87379.0,0.011459]
[1767068254902,0.05736,87395.0,87380.0,0.05732]
[1767068257195,0.0114556,87405.0,87380.0,0.15468]
[1767068257507,0.18151458,87404.0,87380.0,0.15468]
[1767068257708,0.02683458,87403.0,87380.0,0.15468]
[1767068257904,0.02683458,87402.0,87380.0,0.15468]
[1767068258207,0.0114559,87403.0,87380.0,0.15468]
[1767068258413,0.02683199,87402.0,87380.0,0.15468]
[1767068258598,0.0114559,87403.0,87380.0,0.15468]
[1767068258800,0.02683199,87402.0,87380.0,0.15468]
[1767068259001,0.0114559,87403.0,87380.0,0.15468]
[1767068259311,0.10267519,87432.0,87387.0,0.0114579]
[1767068259312,0.09736,87411.0,87387.0,0.0114579]
[1767068259611,0.18150778,87410.0,87387.0,0.0687779]
[1767068259812,0.0114552,87408.0,87387.0,0.05732]
[1767068260110,0.02682778,87407.0,87387.0,0.05732]
[1767068260403,0.0114559,87403.0,87387.0,0.05732]
[1767068260709,0.0687759,87403.0,87387.0,0.05732]
[1767068263512,0.0687759,87403.0,87384.0,0.05732]
[1767068265703,0.05732,87403.0,87379.0,0.00017175]
[1767068265908,0.05732,87403.0,87383.0,0.05732]
[1767068266510,0.0114566,87398.0,87383.0,0.05732]
[1767068270905,0.0114569,87395.0,87383.0,0.05732]
[1767068278623,0.0114573,87392.0,87383.0,0.05732]
[1767068279522,0.0114568,87396.0,87383.0,0.05732]
[1767068295754,0.16728165,87400.0,87383.0,0.05732]
[1767068296053,0.02681622,87399.0,87383.0,0.05732]
[1767068296349,0.16728165,87400.0,87383.0,0.05732]
[1767068296658,0.02681498,87399.0,87383.0,0.05732]
[1767068296954,0.16728165,87400.0,87383.0,0.05732]
[1767068297142,0.02681498,87399.0,87383.0,0.05732]
[1767068297342,0.16728165,87400.0,87383.0,0.05732]
[1767068297542,0.02681433,87399.0,87383.0,0.05732]
[1767068297738,0.16728165,87400.0,87383.0,0.05732]
[1767068298045,0.02681433,87399.0,87383.0,0.05732]
[1767068298246,0.16728165,87400.0,87383.0,0.05732]
[1767068298447,0.02681378,87399.0,87383.0,0.05732]
[1767068298648,0.16728165,87400.0,87383.0,0.05732]
[1767068298848,0.02681378,87399.0,87383.0,0.05732]
[1767068299148,0.16728165,87400.0,87383.0,0.05732]
[1767068299447,0.02681343,87399.0,87383.0,0.05732]
[1767068299647,0.16728165,87400.0,87383.0,0.05732]
[1767068299848,0.02681335,87399.0,87383.0,0.05732]
[1767068300050,0.16728165,87400.0,87383.0,0.05732]
[1767068300249,0.02681306,87399.0,87383.0,0.05732]
[1767068300448,0.16728165,87400.0,87383.0,0.05732]
[1767068300650,0.02681296,87399.0,87383.0,0.05732]
[1767068300950,0.16728165,87400.0,87383.0,0.05732]
[1767068301146,0.02681299,87399.0,87383.0,0.05732]
[1767068301352,0.16728165,87400.0,87383.0,0.05732]
[1767068301547,0.02681267,87399.0,87383.0,0.05732]
[1767068301753,0.16728165,87400.0,87383.0,0.05732]
[1767068301951,0.02681267,87399.0,87383.0,0.05732]
[1767068302152,0.16728165,87400.0,87383.0,0.05732]
[1767068302452,0.02681251,87399.0,87383.0,0.05732]
[1767068302653,0.16728165,87400.0,87383.0,0.05732]